bitfinex-derivatives/quotes_SOLF0:USTF0_20241215
["timestamp","ask_amount","ask_price","bid_price","bid_amount"]
[1734227505681,2.02,221.27,221.19,6.93225657]
[1734227505884,2.2604,221.26,221.2,2.2609]
[1734227509688,2.2604,221.26,221.21,6.93225657]
[1734227512483,2.02,221.27,221.23,6.93225657]
[1734227513586,2.02,221.27,221.23,9.19275657]
[1734227514880,2.02,221.27,221.23,6.93225657]
[1734227515082,2.02,221.27,221.17,3.4757]
[1734227515289,4.2802,221.27,221.2,6.93225657]
[1734227516688,4.2802,221.27,221.2,9.19305657]
[1734227516883,4.2802,221.27,221.22,6.93225657]
[1734227517693,2.02,221.27,221.22,6.93225657]
[1734227518793,2.26,221.29,221.24,9.19275657]
[1734227518987,6.93225657,221.33,221.24,6.93225657]
[1734227519188,2.02,221.32,221.24,6.93225657]
[1734227519393,2.2598,221.31,221.26,2.2603]
[1734227520291,2.02,221.32,221.28,6.93225657]
[1734227520491,2.02,221.34,221.28,6.93225657]
[1734227520701,2.02,221.34,221.22,5.10659024]
[1734227520895,2.02,221.34,221.28,6.93225657]
[1734227521593,4.2795,221.34,221.28,6.93225657]
[1734227521896,2.2595,221.34,221.28,6.93225657]
[1734227522593,2.02,221.35,221.29,2.2599]
[1734227522800,2.02,221.35,221.3,6.93225657]
[1734227523495,2.02,221.35,221.3,9.19215657]
[1734227523892,2.02,221.35,221.3,2.2599]
[1734227524989,2.2593,221.36,221.3,2.2599]
[1734227525191,4.2793,221.36,221.3,2.2599]
[1734227526294,4.2792,221.37,221.31,9.19205657]
[1734227526694,2.2592,221.37,221.31,9.19205657]
[1734227527303,2.8806,221.42,221.33,6.93225657]
[1734227527603,2.02,221.41,221.33,6.93225657]
[1734227527799,2.02,221.41,221.35,6.93225657]
[1734227527997,11.83285657,221.42,221.35,6.93225657]
[1734227528194,11.83285657,221.42,221.33,6.93225657]
[1734227528195,2.2589,221.4,221.33,6.93225657]
[1734227528404,11.83285657,221.42,221.33,6.93225657]
[1734227528600,6.93225657,221.41,221.33,6.93225657]
[1734227529502,9.19105657,221.41,221.34,2.2594]
[1734227529900,9.19105657,221.41,221.35,9.19155657]
[1734227531004,6.93225657,221.41,221.35,9.19155657]
[1734227531203,4.9006,221.42,221.36,2.2592]
[1734227531701,2.02,221.42,221.37,6.93225657]
[1734227531902,2.02,221.42,221.37,9.19135657]
[1734227533206,2.2586,221.43,221.37,9.19135657]
[1734227533407,2.02,221.44,221.39,6.93225657]
[1734227533806,2.2584,221.45,221.39,6.93225657]
[1734227534003,2.02,221.44,221.39,6.93225657]
[1734227534509,4.2785,221.44,221.39,6.93225657]
[1734227538603,2.02,221.44,221.38,6.93225657]
[1734227539206,7.26329657,221.46,221.42,6.93225657]
[1734227539207,0.33104,221.46,221.42,6.93225657]
[1734227539610,0.33104,221.46,221.37,2.02]
[1734227539611,0.33104,221.46,221.44,6.93225657]
[1734227548114,0.33104,221.46,221.43,2.2585]
[1734227548315,0.33104,221.46,221.42,5.2992117]
[1734227548618,0.33104,221.46,221.45,6.93225657]
[1734227550916,2.2587,221.42,221.37,6.93225657]
[1734227551421,2.2587,221.42,221.39,6.93225657]
[1734227551830,2.2585,221.44,221.39,6.93225657]
[1734227552522,2.2585,221.44,221.41,6.93225657]
[1734227553821,2.35104,221.46,221.36,5.53340519]
[1734227554024,2.2585,221.44,221.4,6.93225657]
[1734227554523,2.35104,221.46,221.42,6.93225657]
[1734227554721,0.33104,221.46,221.44,6.93225657]
[1734227556521,4.2777,221.52,221.44,6.93225657]
[1734227556725,2.2577,221.52,221.5,6.93225657]
[1734227557126,4.2773,221.56,221.5,6.93225657]
[1734227557326,2.2573,221.56,221.52,6.93225657]
[1734227557629,2.02,221.57,221.52,6.93225657]
[1734227559332,2.02,221.57,221.51,6.93225657]
[1734227559930,2.2575,221.54,221.5,6.93225657]
[1734227561133,2.2573,221.56,221.5,6.93225657]
[1734227561325,2.2573,221.56,221.52,6.93225657]
[1734227562930,2.2573,221.55,221.52,6.93225657]
[1734227563324,8.95225657,221.57,221.49,6.93225657]
[1734227563523,6.93225657,221.55,221.38,8.2606935]
[1734227563732,6.93225657,221.55,221.47,6.93225657]
[1734227564728,2.2579,221.5,221.47,6.93225657]
[1734227565029,2.02,221.52,221.49,6.93225657]
[1734227565230,2.2576,221.53,221.49,6.93225657]
[1734227566340,2.2576,221.53,221.43,2.02]
[1734227566341,2.2576,221.53,221.51,6.93225657]
[1734227572238,2.02,221.54,221.51,6.93225657]
[1734227572442,2.02,221.54,221.53,6.93225657]
[1734227572642,2.04,221.57,221.53,6.93225657]
[1734227572945,2.2574,221.55,221.53,6.93225657]
[1734227573444,2.2569,221.59,221.53,9.18975657]
[1734227573645,2.2569,221.59,221.56,6.93225657]
[1734227574440,6.93225657,221.59,221.28,63.23820585]
[1734227574638,2.2576,221.53,221.5,6.93225657]
[1734227574839,2.04,221.56,221.5,6.93225657]
[1734227575145,2.2571,221.58,221.54,6.93225657]
[1734227579554,3.565,221.6,221.54,6.93225657]
[1734227579748,2.2571,221.57,221.54,6.93225657]
[1734227580449,3.565,221.6,221.54,6.93225657]
[1734227580752,6.93225657,221.57,221.42,2.04]
[1734227580953,6.93225657,221.55,221.48,6.93225657]
[1734227581153,2.04,221.54,221.48,6.93225657]
[1734227581757,2.2577,221.52,221.48,6.93225657]
[1734227582048,12.14093403,221.54,221.42,2.04]
[1734227582248,2.2579,221.5,221.47,6.93225657]
[1734227584953,1.3894,221.56,221.5,2.2578]
[1734227584954,2.2573,221.56,221.5,2.2578]
[1734227585154,1.525,221.6,221.53,6.93225657]
[1734227585353,2.2573,221.55,221.51,6.93225657]
[1734227585547,2.04,221.56,221.51,6.93225657]
[1734227585956,2.2575,221.54,221.51,6.93225657]
[1734227588256,2.2575,221.54,221.49,6.93225657]
[1734227588450,8.97225657,221.56,221.39,1.4806]
[1734227588652,6.93225657,221.54,221.46,6.93225657]
[1734227588852,6.93225657,221.52,221.44,6.93225657]
[1734227589055,2.258,221.48,221.44,6.93225657]
[1734227590550,2.04,221.51,221.44,6.93225657]
[1734227590751,2.04,221.51,221.46,6.93225657]
[1734227591452,4.2978,221.51,221.46,6.93225657]
[1734227591656,2.04,221.51,221.46,6.93225657]
[1734227592559,2.2579,221.5,221.46,6.93225657]
[1734227595063,2.2579,221.5,221.43,2.2585]
[1734227595262,2.258,221.49,221.44,6.93225657]
[1734227595557,2.258,221.49,221.38,0.90342397]
[1734227595558,6.93225657,221.47,221.38,0.90342397]
[1734227595758,2.08,221.46,221.38,0.90342397]
[1734227595958,6.93225657,221.45,221.38,7.83568054]
[1734227596459,6.93225657,221.45,221.38,0.90342397]
[1734227596760,1.4888,221.44,221.38,0.90342397]
[1734227597362,6.93225657,221.41,221.38,0.90342397]
[1734227597562,6.93225657,221.41,221.26,3.467]
[1734227597563,2.08,221.4,221.34,6.93225657]
[1734227598164,2.2592,221.37,221.32,6.93225657]
[1734227598766,6.93225657,221.37,221.3,6.93225657]
[1734227599561,6.93225657,221.37,221.13,2.0343]
[1734227599758,10.11336597,221.43,221.31,6.93225657]
[1734227600061,6.93225657,221.41,221.33,6.93225657]
[1734227600362,2.2588,221.41,221.35,6.93225657]
[1734227601260,2.08,221.42,221.37,6.93225657]
[1734227601961,3.5688,221.44,221.37,6.93225657]
[1734227603459,3.5688,221.44,221.28,3.18190827]
[1734227603460,9.19085657,221.43,221.28,3.18190827]
[1734227603666,9.19085657,221.43,221.36,6.93225657]
[1734227607165,1.5095,221.5,221.34,2.08]
[1734227607369,1.5095,221.5,221.4,6.93225657]
[1734227607370,6.93225657,221.48,221.4,6.93225657]
[1734227608066,2.2581,221.48,221.39,2.2589]
[1734227608261,4.9202,221.51,221.44,6.93225657]
[1734227609067,4.9202,221.51,221.44,9.19065657]
[1734227609266,2.08,221.51,221.44,9.19065657]
[1734227609463,4.3378,221.51,221.39,2.08]
[1734227609663,6.93225657,221.5,221.4,2.2588]
[1734227609869,6.93225657,221.5,221.42,6.93225657]
[1734227610770,2.258,221.49,221.42,6.93225657]
[1734227611164,4.3378,221.51,221.44,6.93225657]
[1734227611365,2.08,221.51,221.44,6.93225657]
[1734227611867,2.2578,221.5,221.44,6.93225657]
[1734227612063,6.93225657,221.49,221.36,7.6312649]
[1734227612366,2.2583,221.46,221.4,6.93225657]
[1734227612570,4.3383,221.46,221.4,6.93225657]
[1734227612970,2.08,221.46,221.4,6.93225657]
[1734227613169,2.2584,221.45,221.39,2.2589]
[1734227613963,2.2585,221.44,221.38,2.2591]
[1734227614262,2.08,221.46,221.38,6.93225657]
[1734227615676,2.2586,221.43,221.38,6.93225657]
[1734227617972,6.93225657,221.43,221.23,3.18024027]
[1734227618168,6.93225657,221.43,221.36,6.93225657]
[1734227618974,6.93225657,221.43,221.31,2.08]
[1734227618975,2.2589,221.4,221.31,2.2597]
[1734227619178,2.08,221.39,221.34,12.39460244]
[1734227619374,2.08,221.41,221.36,6.93225657]
[1734227619573,2.08,221.42,221.36,6.93225657]
[1734227620873,2.08,221.42,221.34,12.39460244]
[1734227621075,6.93225657,221.41,221.34,12.39460244]
[1734227621270,9.19105657,221.41,221.34,14.65410244]
[1734227621474,2.2588,221.41,221.34,14.65410244]
[1734227622784,2.2589,221.4,221.34,14.65410244]
[1734227623881,6.93225657,221.41,221.34,6.93225657]
[1734227624782,6.93225657,221.41,221.32,6.93225657]
[1734227625684,2.2591,221.38,221.32,6.93225657]
[1734227625983,2.08,221.37,221.32,6.93225657]
[1734227626786,2.08,221.4,221.34,9.19165657]
[1734227626983,2.8167,221.49,221.38,6.93225657]
[1734227627182,2.8167,221.49,221.42,6.93225657]
[1734227627378,5.0747,221.49,221.42,6.93225657]
[1734227627582,12.00695657,221.49,221.42,6.93225657]
[1734227628587,2.2581,221.48,221.42,6.93225657]
[1734227629185,2.2582,221.47,221.42,6.93225657]
[1734227629388,9.74895657,221.49,221.42,6.93225657]
[1734227630691,9.74895657,221.49,221.4,6.93225657]
[1734227630692,6.93225657,221.47,221.4,6.93225657]
[1734227631193,2.2584,221.45,221.38,6.93225657]
[1734227631493,2.08,221.44,221.38,6.93225657]
[1734227631692,4.3385,221.44,221.36,2.2592]
[1734227631993,4.3385,221.44,221.38,6.93225657]
[1734227632290,2.08,221.44,221.38,9.19135657]
[1734227633081,2.2584,221.45,221.38,9.19135657]
[1734227633283,4.3385,221.44,221.38,6.93225657]
[1734227634087,2.08,221.44,221.38,6.93225657]
[1734227634292,2.2586,221.43,221.38,6.93225657]
[1734227636290,2.8167,221.49,221.38,6.93225657]
[1734227636490,2.08,221.49,221.44,6.93225657]
[1734227636692,2.08,221.5,221.44,6.93225657]
[1734227637089,4.3379,221.5,221.44,9.19065657]
[1734227637397,4.3379,221.5,221.44,2.2584]
[1734227637594,2.08,221.5,221.45,2.2583]
[1734227637893,2.2577,221.51,221.45,2.2583]
[1734227637894,4.3377,221.51,221.45,2.2583]
[1734227638090,2.08,221.52,221.42,10.77394126]
[1734227638296,2.9433,221.55,221.43,2.08]
[1734227638593,2.08,221.54,221.43,2.08]
[1734227638796,4.3374,221.54,221.48,2.258]
[1734227639096,2.2574,221.54,221.48,2.258]
[1734227639299,4.3374,221.54,221.48,2.258]
[1734227640193,2.2574,221.54,221.48,2.258]
[1734227640389,2.08,221.55,221.49,2.2579]
[1734227640595,4.58541,221.56,221.45,10.77394126]
[1734227641297,4.3373,221.56,221.48,2.258]
[1734227641497,4.3373,221.56,221.45,10.77394126]
[1734227642595,4.3373,221.56,221.5,2.2578]
[1734227643201,441.5143954,221.58,221.48,10.77394126]
[1734227643592,443.5943954,221.58,221.48,12.85394126]
[1734227644302,441.5143954,221.58,221.48,12.85394126]
[1734227644492,443.5943954,221.58,221.48,12.85394126]
[1734227644799,443.5943954,221.58,221.52,2.2576]
[1734227645298,439.2572954,221.58,221.48,12.85394126]
[1734227645500,439.2572954,221.58,221.53,2.2575]
[1734227645800,439.2572954,221.58,221.49,1.4901]
[1734227646400,439.2572954,221.58,221.51,10.77394126]
[1734227646801,439.2572954,221.58,221.57,10.77394126]
[1734227647202,182.29052263,221.58,221.56,2.2572]
[1734227647399,251.0041688,221.62,221.56,2.2572]
[1734227647901,3.4885,221.67,221.56,2.2572]
[1734227648696,10.77394126,221.61,221.48,5.29559424]
[1734227649004,2.08,221.6,221.48,16.0695355]
[1734227649599,10.77394126,221.55,221.4,10.77394126]
[1734227649801,6.5825,221.54,221.43,5.30031014]
[1734227650005,2.2578,221.51,221.43,7.55881014]
[1734227650206,2.08,221.5,221.43,16.0742514]
[1734227651105,2.08,221.5,221.45,2.2583]
[1734227652304,2.08,221.52,221.45,2.2583]
[1734227654009,4.3377,221.52,221.45,2.2583]
[1734227655304,4.3377,221.52,221.43,16.0742514]
[1734227655305,2.2578,221.51,221.43,18.3327514]
[1734227656808,2.2578,221.51,221.44,2.2584]
[1734227657310,2.2578,221.51,221.43,16.0742514]
[1734227657311,2.2576,221.52,221.46,2.2582]
[1734227657604,2.14,221.51,221.46,2.2582]
[1734227660805,6.76,221.54,221.47,2.2581]
[1734227661002,2.14,221.53,221.47,2.2581]
[1734227661705,10.77394126,221.58,221.47,2.2581]
[1734227661909,10.77394126,221.65,221.43,16.0742514]
[1734227661910,4.2729,221.63,221.51,10.77394126]
[1734227662207,4.2729,221.63,221.54,10.77394126]
[1734227662413,4.2729,221.63,221.44,5.08623244]
[1734227662710,4.2729,221.63,221.5,10.77394126]
[1734227662911,15.04684126,221.63,221.5,10.77394126]
[1734227663415,2.257,221.59,221.54,6.88992556]
[1734227664211,6.88992556,221.62,221.54,6.88992556]
[1734227664507,2.14,221.61,221.54,6.88992556]
[1734227664913,0.41803,221.68,221.54,6.88992556]
[1734227664914,2.2564,221.64,221.56,6.88992556]
[1734227665209,2.14,221.63,221.52,10.76354474]
[1734227666616,2.2566,221.62,221.54,2.2573]
[1734227670213,2.14,221.63,221.52,10.76354474]
[1734227670214,2.2569,221.59,221.52,13.02104474]
[1734227670416,2.14,221.63,221.49,10.76354474]
[1734227670417,4.3693,221.61,221.49,10.76354474]
[1734227671718,2.2571,221.58,221.51,2.2577]
[1734227671918,2.2571,221.58,221.46,2.0411]
[1734227671919,2.14,221.57,221.47,2.14]
[1734227673716,2.2573,221.55,221.48,2.258]
[1734227674318,4.3972,221.57,221.51,2.2577]
[1734227674515,2.14,221.57,221.47,2.14]
[1734227676724,2.14,221.57,221.51,2.2577]
[1734227677120,2.2576,221.53,221.47,2.2581]
[1734227679017,2.2576,221.53,221.48,2.258]
[1734227679221,2.14,221.57,221.46,5.35776901]
[1734227679420,2.14,221.57,221.46,16.12131375]
[1734227680025,2.2574,221.55,221.46,16.12131375]
[1734227680925,2.2575,221.53,221.47,2.2581]
[1734227681318,2.2576,221.53,221.47,2.2581]
[1734227681723,2.14,221.57,221.47,2.2581]
[1734227681925,2.14,221.57,221.43,12.90354474]
[1734227682122,2.14,221.57,221.44,5.10660371]
[1734227682324,2.14,221.57,221.46,2.2582]
[1734227683224,2.2576,221.53,221.47,2.2581]
[1734227687127,2.2576,221.53,221.48,6.89375766]
[1734227687631,9.15115766,221.55,221.49,2.2579]
[1734227687829,9.03375766,221.57,221.5,6.89375766]
[1734227689430,2.14,221.57,221.5,6.89375766]
[1734227689630,4.3972,221.57,221.51,2.2577]
[1734227689823,2.14,221.57,221.5,6.89375766]
[1734227691835,6.4893,221.61,221.56,6.89375766]
[1734227692432,4.3693,221.61,221.56,6.89375766]
[1734227693129,4.3693,221.61,221.54,10.7625047]
[1734227694927,5.51279956,221.65,221.54,10.7625047]
[1734227695126,2.12,221.64,221.54,10.7625047]
[1734227695729,2.2565,221.63,221.57,2.2571]
[1734227696134,2.12,221.64,221.54,10.7625047]
[1734227696331,2.12,221.64,221.58,2.257]
[1734227696932,2.12,221.64,221.54,10.7625047]
[1734227697139,10.7625047,221.63,221.51,10.7625047]
[1734227697338,10.7625047,221.63,221.48,10.7625047]
[1734227697643,10.7625047,221.63,221.5,2.2578]
[1734227697644,2.2572,221.57,221.5,2.2578]
[1734227698440,2.2572,221.57,221.51,2.2577]
[1734227700334,2.12,221.58,221.48,10.7625047]
[1734227700540,2.12,221.58,221.49,2.2579]
[1734227700843,10.7625047,221.57,221.45,16.15618384]
[1734227701047,2.2575,221.54,221.46,2.2582]
[1734227701236,2.12,221.53,221.46,2.2582]
[1734227701546,2.12,221.52,221.45,5.39367914]
[1734227701737,2.12,221.52,221.46,5.10768726]
[1734227701939,2.12,221.52,221.45,16.15618384]
[1734227702139,2.12,221.52,221.46,5.10711473]
[1734227702336,2.12,221.52,221.45,16.15618384]
[1734227702545,2.12,221.52,221.46,5.10793634]
[1734227702747,2.12,221.52,221.48,2.258]
[1734227706844,2.2574,221.55,221.49,2.2579]
[1734227707149,2.9734,221.57,221.48,10.7625047]
[1734227707451,5.2306,221.57,221.49,15.86778947]
[1734227707647,5.2306,221.57,221.5,5.10437595]
[1734227707847,5.2306,221.57,221.49,10.7625047]
[1734227708047,5.2306,221.57,221.5,5.10392749]
[1734227708249,5.2306,221.57,221.49,10.7625047]
[1734227708446,5.2306,221.57,221.5,5.10368537]
[1734227708744,5.2306,221.57,221.52,2.2576]
[1734227710551,2.12,221.58,221.53,2.2575]
[1734227710945,2.9832,221.63,221.54,2.2574]
[1734227711145,2.12,221.62,221.52,10.7625047]
[1734227711847,2.2568,221.61,221.55,2.2573]
[1734227713147,2.2568,221.61,221.55,9.14614495]
[1734227716850,2.2568,221.6,221.55,6.88884495]
[1734227717047,5.1032,221.63,221.52,6.88884495]
[1734227717256,6.88884495,221.61,221.54,6.88884495]
[1734227718660,6.88884495,221.61,221.55,2.2573]
[1734227719158,9.14554495,221.61,221.55,2.2573]
[1734227719757,6.88884495,221.61,221.54,6.88884495]
[1734227719959,6.88884495,221.59,221.51,6.88884495]
[1734227720455,6.88884495,221.57,221.45,5.39367914]
[1734227720660,6.88884495,221.57,221.49,6.88884495]
[1734227721059,2.1,221.58,221.45,5.39367914]
[1734227721060,2.2575,221.54,221.45,5.39367914]
[1734227721254,2.2575,221.54,221.47,6.88884495]
[1734227722660,2.2575,221.54,221.48,2.258]
[1734227723464,2.1,221.53,221.48,2.258]
[1734227725159,8.98884495,221.53,221.48,2.258]
[1734227725457,11.24644495,221.53,221.48,2.258]
[1734227725657,4.3576,221.53,221.48,2.258]
[1734227726361,2.1,221.58,221.51,6.88884495]
[1734227726565,2.1,221.59,221.53,6.88884495]
[1734227726761,2.257,221.58,221.53,6.88884495]
[1734227726966,2.1,221.59,221.53,6.88884495]
[1734227727169,2.1,221.59,221.45,5.39367914]
[1734227727170,6.88884495,221.58,221.51,6.88884495]
[1734227727566,4.357,221.59,221.52,2.2576]
[1734227727769,4.357,221.59,221.53,6.88884495]
[1734227728469,4.357,221.59,221.51,6.88884495]
[1734227728470,6.88884495,221.58,221.51,6.88884495]
[1734227728862,6.88884495,221.54,221.47,6.88884495]
[1734227729065,4.3576,221.53,221.47,6.88884495]
[1734227730466,2.2576,221.52,221.47,6.88884495]
[1734227731265,2.2576,221.52,221.46,2.2582]
[1734227731469,2.2576,221.52,221.47,5.10487296]
[1734227731669,2.2576,221.52,221.46,9.14704495]
[1734227731872,2.2578,221.51,221.46,9.14704495]
[1734227732461,2.2578,221.5,221.46,6.88884495]
[1734227732662,2.2578,221.5,221.44,6.88884495]
[1734227732968,2.2578,221.5,221.45,5.10710568]
[1734227733269,2.2578,221.5,221.44,9.14724495]
[1734227733470,2.2578,221.5,221.45,5.10630414]
[1734227733668,2.2578,221.5,221.44,9.14724495]
[1734227735471,6.88884495,221.5,221.38,2.0434]
[1734227735677,6.88884495,221.48,221.41,6.88884495]
[1734227735976,2.1,221.47,221.41,6.88884495]
[1734227736171,2.1,221.47,221.36,34.03345934]
[1734227736172,2.2583,221.46,221.36,34.03345934]
[1734227736373,2.2583,221.46,221.4,6.88884495]
[1734227736568,2.1,221.47,221.4,6.88884495]
[1734227736877,2.2584,221.45,221.4,9.14764495]
[1734227737172,2.1,221.47,221.4,9.14764495]
[1734227737674,2.2583,221.46,221.41,2.2588]
[1734227739778,2.1,221.47,221.4,6.88884495]
[1734227739974,2.1,221.47,221.43,2.2585]
[1734227741379,2.1,221.47,221.44,2.2584]
[1734227742685,2.1,221.47,221.42,9.14744495]
[1734227743181,2.1,221.47,221.43,2.2585]
[1734227743783,6.88884495,221.5,221.42,6.88884495]
[1734227744086,2.1,221.49,221.44,2.2584]
[1734227744379,2.1,221.49,221.44,6.88884495]
[1734227745685,2.1,221.49,221.45,2.2583]
[1734227747484,2.2576,221.53,221.46,6.88884495]
[1734227747783,2.08,221.52,221.46,6.88884495]
[1734227747987,4.4015,221.62,221.46,6.88884495]
[1734227748183,9.14614495,221.56,221.48,6.88884495]
[1734227748387,2.08,221.55,221.48,6.88884495]
[1734227748578,4.3374,221.55,221.49,2.2579]
[1734227748784,6.88884495,221.54,221.42,2.08]
[1734227748987,6.88884495,221.54,221.46,6.88884495]
[1734227749187,2.08,221.53,221.46,6.88884495]
[1734227749685,2.08,221.53,221.47,2.2581]
[1734227751482,2.2579,221.51,221.42,2.2586]
[1734227751682,6.88884495,221.5,221.44,6.88884495]
[1734227751887,6.88884495,221.46,221.4,6.88884495]
[1734227752083,8.96884495,221.46,221.4,6.88884495]
[1734227752383,11.22714495,221.46,221.4,6.88884495]
[1734227752788,11.22714495,221.46,221.41,2.2587]
[1734227752789,8.96884495,221.46,221.41,2.2587]
[1734227753083,2.08,221.46,221.42,6.88884495]
[1734227754290,2.08,221.46,221.41,6.88884495]
[1734227754588,2.08,221.46,221.39,6.88884495]
[1734227754789,2.08,221.46,221.4,5.09342064]
[1734227754979,2.08,221.46,221.39,6.88884495]
[1734227755180,2.08,221.46,221.4,5.09323885]
[1734227755384,8.96884495,221.46,221.39,6.88884495]
[1734227755584,11.22724495,221.46,221.41,2.2587]
[1734227756082,2.2584,221.46,221.42,2.2586]
[1734227756489,2.08,221.48,221.41,6.88884495]
[1734227757385,2.08,221.48,221.43,2.2586]
[1734227758090,2.08,221.48,221.44,2.2584]
[1734227759690,2.08,221.48,221.41,2.2588]
[1734227759691,2.2583,221.47,221.41,2.2588]
[1734227759889,6.88884495,221.47,221.41,2.2588]
[1734227760488,2.2583,221.46,221.42,2.2586]
[1734227762889,6.88884495,221.47,221.42,2.2586]
[1734227763090,9.14704495,221.47,221.42,2.2586]
[1734227763893,2.2582,221.47,221.42,2.2586]
[1734227764094,2.2582,221.47,221.43,2.2586]
[1734227764289,2.08,221.48,221.42,6.88884495]
[1734227764494,2.08,221.5,221.44,6.88884495]
[1734227765394,2.2579,221.5,221.45,2.2583]
[1734227766089,3.6027,221.52,221.46,6.88884495]
[1734227766298,2.08,221.52,221.46,6.88884495]
[1734227766598,8.96884495,221.55,221.48,6.88884495]
[1734227766795,2.2575,221.53,221.49,2.2579]
[1734227766987,8.96884495,221.55,221.49,2.2579]
[1734227768193,2.08,221.55,221.38,7.35186883]
[1734227768489,6.88884495,221.5,221.41,6.88884495]
[1734227768702,2.08,221.5,221.46,2.2582]
[1734227770191,2.2578,221.51,221.46,2.2582]
[1734227770592,6.88884495,221.5,221.46,2.2582]
[1734227770796,2.08,221.52,221.48,2.258]
[1734227770994,2.08,221.52,221.45,6.88884495]
[1734227771196,2.08,221.52,221.46,5.10704474]
[1734227771393,2.08,221.52,221.45,6.88884495]
[1734227771596,2.08,221.52,221.46,5.10744262]
[1734227771795,2.08,221.52,221.45,6.88884495]
[1734227771994,6.88884495,221.53,221.48,2.258]
[1734227772396,2.9187,221.58,221.38,7.35186883]
[1734227772397,2.2571,221.58,221.52,2.2576]
[1734227772594,2.2571,221.58,221.49,6.88884495]
[1734227772595,6.88884495,221.58,221.49,6.88884495]
[1734227773096,6.88884495,221.58,221.54,2.2574]
[1734227773497,2.2572,221.57,221.54,2.2574]
[1734227774300,9.14584495,221.58,221.54,2.2574]
[1734227775308,2.257,221.58,221.51,6.88884495]
[1734227775601,0.30069,221.6,221.55,6.88884495]
[1734227775798,0.30069,221.6,221.58,6.88884495]
[1734227775994,0.30069,221.6,221.59,2.2569]
[1734227776599,0.30069,221.6,221.55,8.96884495]
[1734227776804,7.18953495,221.6,221.49,2.12]
[1734227777000,7.18953495,221.6,221.51,6.88884495]
[1734227777203,7.18953495,221.6,221.53,6.88884495]
[1734227777900,0.30069,221.6,221.54,2.12]
[1734227781002,6.88884495,221.58,221.55,2.2572]
[1734227781999,0.30069,221.6,221.54,5.44135014]
[1734227782609,7.18953495,221.6,221.54,5.44135014]
[1734227783704,7.18953495,221.6,221.57,2.2571]
[1734227785108,7.18953495,221.6,221.58,2.257]
[1734227786103,0.30069,221.6,221.58,2.257]
[1734227786706,0.30069,221.6,221.54,5.44135014]
[1734227786707,0.30069,221.6,221.59,2.2569]
[1734227787210,0.30069,221.6,221.59,9.14574495]
[1734227788009,0.30069,221.6,221.59,2.2569]
[1734227790509,0.30069,221.6,221.59,9.14574495]
[1734227800018,0.30069,221.6,221.58,2.257]
[1734227800815,6.88884495,221.63,221.58,2.257]
[1734227801617,2.2568,221.61,221.58,2.257]
[1734227803221,2.2568,221.61,221.57,6.88884495]
[1734227803421,2.2568,221.61,221.59,2.2569]
[1734227804122,1.4658,221.62,221.59,2.2569]
[1734227804424,3.7224,221.62,221.59,9.14574495]
[1734227805023,6.88884495,221.65,221.6,2.2568]
[1734227805321,2.2565,221.63,221.6,2.2568]
[1734227806424,2.2565,221.64,221.61,2.2567]
[1734227806618,6.88884495,221.65,221.61,2.2567]
[1734227807626,2.2565,221.63,221.6,2.2568]
[1734227809329,6.88884495,221.61,221.51,2.08]
[1734227809529,6.88884495,221.61,221.53,6.88884495]
[1734227809530,8.96884495,221.61,221.53,6.88884495]
[1734227810029,2.2572,221.57,221.53,9.14624495]
[1734227810630,2.2572,221.57,221.54,2.2574]
[1734227811829,2.2572,221.56,221.53,9.14634495]
[1734227812425,2.2571,221.57,221.54,2.2574]
[1734227812829,1.5073,221.6,221.53,6.88884495]
[1734227813029,2.928,221.6,221.53,9.14634495]
[1734227814125,2.2572,221.57,221.53,9.14634495]
[1734227815530,2.2572,221.57,221.54,2.2574]
[1734227817037,5.1848,221.6,221.57,2.2571]
[1734227817929,0.52796,221.72,221.59,6.88884495]
[1734227818130,1.97406,221.72,221.65,6.88884495]
[1734227818633,2.08,221.71,221.6,2.08]
[1734227818832,2.08,221.71,221.65,6.88884495]